{"text_format":"3","workbook":"xlsx","n_sheets":1,"sheets":["Месечен семеен бюджет"],"read":"whole","date_system":"1900"}

{"sheet":"Месечен семеен бюджет","index":0,"n_rows":67,"n_cols":10,"rows_kept":67}
[null,"Месечен семеен бюджет"]
[null,"Таблица \"Резюме\"","Обща сума\nПрогнозни разходи","Обща сума\nДействителни разходи","Обща сума\nРазлика",null,"Източник на прогнозен месечен доход","Сума"]
[null,null,{"$f":"Домакинство[[#Totals],[Прогнозни\nРазходи]]+Транспорт[[#Totals],[Прогнозни\nРазходи]]+Застраховка[[#Totals],[Прогнозни\nРазходи]]+Храна[[#Totals],[Прогнозни\nРазходи]]+Деца[[#Totals],[Прогнозни\nРазходи]]+Юридически[[#Totals],[Прогнозни\nРазходи]]+Спестявания[[#Totals],[Прогнозни\nРазходи]]+Заеми[[#Totals],[Прогнозни\nРазходи]]+Развлечения[[#Totals],[Прогнозни\nРазходи]]+Данъци[[#Totals],[Прогнозни \nРазходи]]+ХигиенниМатериали[[#Totals],[Прогнозни\nРазходи]]+Домашни_любимци[[#Totals],[Прогнозни\nРазходи]]+Подаръци[[#Totals],[Прогнозни\nРазходи]]","v":{"v":1203,"d":"1,203 лв."}},{"$f":"Домакинство[[#Totals],[Действителни\nРазходи]]+Транспорт[[#Totals],[Действителни\nРазходи]]+Застраховка[[#Totals],[Действителни\nРазходи]]+Храна[[#Totals],[Действителни\nРазходи]]+Деца[[#Totals],[Действителни\nРазходи]]+Юридически[[#Totals],[Действителни\nРазходи]]+Спестявания[[#Totals],[Действителни\nРазходи]]+Заеми[[#Totals],[Действителни\nРазходи]]+Развлечения[[#Totals],[Действителни\nРазходи]]+Данъци[[#Totals],[Действителни \nРазходи]]+ХигиенниМатериали[[#Totals],[Действителни\nРазходи]]+Домашни_любимци[[#Totals],[Действителни\nРазходи]]+Подаръци[[#Totals],[Действителни\nРазходи]]","v":{"v":1317,"d":"1,317 лв."}},{"$f":"Домакинство[[#Totals],[Разлика]]+Транспорт[[#Totals],[Разлика]]+Застраховка[[#Totals],[Разлика]]+Храна[[#Totals],[Разлика]]+Деца[[#Totals],[Разлика]]+Юридически[[#Totals],[Разлика]]+Спестявания[[#Totals],[Разлика]]+Заеми[[#Totals],[Разлика]]+Развлечения[[#Totals],[Разлика]]+Данъци[[#Totals],[Разлика]]+ХигиенниМатериали[[#Totals],[Разлика]]+Домашни_любимци[[#Totals],[Разлика]]+Подаръци[[#Totals],[Разлика]]","v":{"v":-114,"d":"-114 лв."}},null,"Доход 1",{"v":4000,"d":"4,000 лв."}]
[{"$nulls":6},"Доход 2",{"v":1200,"d":"1,200 лв."}]
[null,"Домакинство","Прогнозни\nРазходи","Действителни\nРазходи","Разлика",null,"Допълнителен доход",{"v":300,"d":"300 лв."}]
[null,"Ипотека или наем",{"v":1000,"d":"1,000 лв."},{"v":1000,"d":"1,000 лв."},{"$f":"Домакинство[Прогнозни\nРазходи]-Домакинство[Действителни\nРазходи]","v":{"v":0,"d":"0 лв."}},null,"Общ месечен доход",{"$f":"SUM(H3:H5)","v":{"v":5500,"d":"5,500 лв."}}]
[null,"Втора ипотека или наем",{"v":0,"d":"0 лв."},{"v":0,"d":"0 лв."},{"$f":"Домакинство[Прогнозни\nРазходи]-Домакинство[Действителни\nРазходи]","v":{"v":0,"d":"0 лв."}}]
[null,"Телефон",{"v":62,"d":"62 лв."},{"v":100,"d":"100 лв."},{"$f":"Домакинство[Прогнозни\nРазходи]-Домакинство[Действителни\nРазходи]","v":{"v":-38,"d":"-38 лв."}},null,"Източник на действителен месечен доход","Сума"]
[null,"Електричество",{"v":44,"d":"44 лв."},{"v":125,"d":"125 лв."},{"$f":"Домакинство[Прогнозни\nРазходи]-Домакинство[Действителни\nРазходи]","v":{"v":-81,"d":"-81 лв."}},null,"Доход 1",{"v":4000,"d":"4,000 лв."}]
[null,"Газ",{"v":22,"d":"22 лв."},{"v":35,"d":"35 лв."},{"$f":"Домакинство[Прогнозни\nРазходи]-Домакинство[Действителни\nРазходи]","v":{"v":-13,"d":"-13 лв."}},null,"Доход 2",{"v":1200,"d":"1,200 лв."}]
[null,"ВИК",{"v":8,"d":"8 лв."},{"v":8,"d":"8 лв."},{"$f":"Домакинство[Прогнозни\nРазходи]-Домакинство[Действителни\nРазходи]","v":{"v":0,"d":"0 лв."}},null,"Допълнителен доход",{"v":300,"d":"300 лв."}]
[null,"Кабелна телевизия",{"v":34,"d":"34 лв."},{"v":39,"d":"39 лв."},{"$f":"Домакинство[Прогнозни\nРазходи]-Домакинство[Действителни\nРазходи]","v":{"v":-5,"d":"-5 лв."}},null,"Общ месечен доход",{"$f":"SUM(H9:H11)","v":{"v":5500,"d":"5,500 лв."}}]
[null,"Такса смет",{"v":10,"d":"10 лв."},{"v":10,"d":"10 лв."},{"$f":"Домакинство[Прогнозни\nРазходи]-Домакинство[Действителни\nРазходи]","v":{"v":0,"d":"0 лв."}}]
[null,"Поддръжка или ремонти",{"v":23,"d":"23 лв."},{"v":0,"d":"0 лв."},{"$f":"Домакинство[Прогнозни\nРазходи]-Домакинство[Действителни\nРазходи]","v":{"v":23,"d":"23 лв."}},null,"Салдо","Сума"]
[null,"Доставки",{"v":0,"d":"0 лв."},{"v":0,"d":"0 лв."},{"$f":"Домакинство[Прогнозни\nРазходи]-Домакинство[Действителни\nРазходи]","v":{"v":0,"d":"0 лв."}},null,"Планирано салдо",{"$f":"SUM(H6-'Месечен семеен бюджет'!$C$3:$C$3)","v":{"v":4297,"d":"4,297 лв."}}]
[null,"Други",{"v":0,"d":"0 лв."},{"v":0,"d":"0 лв."},{"$f":"Домакинство[Прогнозни\nРазходи]-Домакинство[Действителни\nРазходи]","v":{"v":0,"d":"0 лв."}},null,"Действително салдо",{"$f":"SUM(H12-D3)","v":{"v":4183,"d":"4,183 лв."}}]
[null,"Общо",{"$f":"SUBTOTAL(109,Домакинство[Прогнозни\nРазходи])","v":{"v":1203,"d":"1,203 лв."}},{"$f":"SUBTOTAL(109,Домакинство[Действителни\nРазходи])","v":{"v":1317,"d":"1,317 лв."}},{"$f":"SUBTOTAL(109,Домакинство[Разлика])","v":{"v":-114,"d":"-114 лв."}},null,"Разлика",{"$f":"SUM(H16-H15)","v":{"v":-114,"d":"-114 лв."}}]
[]
[null,"Транспорт","Прогнозни\nРазходи","Действителни\nРазходи","Разлика",null,"Заеми","Прогнозни\nРазходи","Действителни\nРазходи","Разлика"]
[null,"Плащане автомобил 1",null,null,{"$f":"Транспорт[Прогнозни\nРазходи]-Транспорт[Действителни\nРазходи]","v":{"v":0,"d":"0 лв."}},null,"Личен",null,null,{"$f":"Заеми[Прогнозни\nРазходи]-Заеми[Действителни\nРазходи]","v":{"v":0,"d":"0 лв."}}]
[null,"Плащане автомобил 2",null,null,{"$f":"Транспорт[Прогнозни\nРазходи]-Транспорт[Действителни\nРазходи]","v":{"v":0,"d":"0 лв."}},null,"Студентски",null,null,{"$f":"Заеми[Прогнозни\nРазходи]-Заеми[Действителни\nРазходи]","v":{"v":0,"d":"0 лв."}}]
[null,"Разходи за автобус/такси",null,null,{"$f":"Транспорт[Прогнозни\nРазходи]-Транспорт[Действителни\nРазходи]","v":{"v":0,"d":"0 лв."}},null,"Кредитна карта",null,null,{"$f":"Заеми[Прогнозни\nРазходи]-Заеми[Действителни\nРазходи]","v":{"v":0,"d":"0 лв."}}]
[null,"Застраховка",null,null,{"$f":"Транспорт[Прогнозни\nРазходи]-Транспорт[Действителни\nРазходи]","v":{"v":0,"d":"0 лв."}},null,"Кредитна карта",null,null,{"$f":"Заеми[Прогнозни\nРазходи]-Заеми[Действителни\nРазходи]","v":{"v":0,"d":"0 лв."}}]
[null,"Лицензи",null,null,{"$f":"Транспорт[Прогнозни\nРазходи]-Транспорт[Действителни\nРазходи]","v":{"v":0,"d":"0 лв."}},null,"Кредитна карта",null,null,{"$f":"Заеми[Прогнозни\nРазходи]-Заеми[Действителни\nРазходи]","v":{"v":0,"d":"0 лв."}}]
[null,"Гориво",null,null,{"$f":"Транспорт[Прогнозни\nРазходи]-Транспорт[Действителни\nРазходи]","v":{"v":0,"d":"0 лв."}},null,"Други",null,null,{"$f":"Заеми[Прогнозни\nРазходи]-Заеми[Действителни\nРазходи]","v":{"v":0,"d":"0 лв."}}]
[null,"Поддръжка",null,null,{"$f":"Транспорт[Прогнозни\nРазходи]-Транспорт[Действителни\nРазходи]","v":{"v":0,"d":"0 лв."}},null,"Общо",{"$f":"SUBTOTAL(109,Заеми[Прогнозни\nРазходи])","v":{"v":0,"d":"0 лв."}},{"$f":"SUBTOTAL(109,Заеми[Действителни\nРазходи])","v":{"v":0,"d":"0 лв."}},{"$f":"SUBTOTAL(109,Заеми[Разлика])","v":{"v":0,"d":"0 лв."}}]
[null,"Други",null,null,{"$f":"Транспорт[Прогнозни\nРазходи]-Транспорт[Действителни\nРазходи]","v":{"v":0,"d":"0 лв."}}]
[null,"Общо",{"$f":"SUBTOTAL(109,Транспорт[Прогнозни\nРазходи])","v":{"v":0,"d":"0 лв."}},{"$f":"SUBTOTAL(109,Транспорт[Действителни\nРазходи])","v":{"v":0,"d":"0 лв."}},{"$f":"SUBTOTAL(109,Транспорт[Разлика])","v":{"v":0,"d":"0 лв."}},null,"Развлечения","Прогнозни\nРазходи","Действителни\nРазходи","Разлика"]
[{"$nulls":6},"Видео/DVD",null,null,{"$f":"Развлечения[Прогнозни\nРазходи]-Развлечения[Действителни\nРазходи]","v":{"v":0,"d":"0 лв."}}]
[null,"Застраховка","Прогнозни\nРазходи","Действителни\nРазходи","Разлика",null,"Компактдискове",null,null,{"$f":"Развлечения[Прогнозни\nРазходи]-Развлечения[Действителни\nРазходи]","v":{"v":0,"d":"0 лв."}}]
[null,"Дом",null,null,{"$f":"Застраховка[Прогнозни\nРазходи]-Застраховка[Действителни\nРазходи]","v":{"v":0,"d":"0 лв."}},null,"Филми",null,null,{"$f":"Развлечения[Прогнозни\nРазходи]-Развлечения[Действителни\nРазходи]","v":{"v":0,"d":"0 лв."}}]
[null,"Здравеопазване",null,null,{"$f":"Застраховка[Прогнозни\nРазходи]-Застраховка[Действителни\nРазходи]","v":{"v":0,"d":"0 лв."}},null,"Концерти",null,null,{"$f":"Развлечения[Прогнозни\nРазходи]-Развлечения[Действителни\nРазходи]","v":{"v":0,"d":"0 лв."}}]
[null,"Живот",null,null,{"$f":"Застраховка[Прогнозни\nРазходи]-Застраховка[Действителни\nРазходи]","v":{"v":0,"d":"0 лв."}},null,"Спортни събития",null,null,{"$f":"Развлечения[Прогнозни\nРазходи]-Развлечения[Действителни\nРазходи]","v":{"v":0,"d":"0 лв."}}]
[null,"Други",null,null,{"$f":"Застраховка[Прогнозни\nРазходи]-Застраховка[Действителни\nРазходи]","v":{"v":0,"d":"0 лв."}},null,"Театър",null,null,{"$f":"Развлечения[Прогнозни\nРазходи]-Развлечения[Действителни\nРазходи]","v":{"v":0,"d":"0 лв."}}]
[null,"Общо",{"$f":"SUBTOTAL(109,Застраховка[Прогнозни\nРазходи])","v":{"v":0,"d":"0 лв."}},{"$f":"SUBTOTAL(109,Застраховка[Действителни\nРазходи])","v":{"v":0,"d":"0 лв."}},{"$f":"SUBTOTAL(109,Застраховка[Разлика])","v":{"v":0,"d":"0 лв."}},null,"Други",null,null,{"$f":"Развлечения[Прогнозни\nРазходи]-Развлечения[Действителни\nРазходи]","v":{"v":0,"d":"0 лв."}}]
[{"$nulls":6},"Общо",{"$f":"SUBTOTAL(109,Развлечения[Прогнозни\nРазходи])","v":{"v":0,"d":"0 лв."}},{"$f":"SUBTOTAL(109,Развлечения[Действителни\nРазходи])","v":{"v":0,"d":"0 лв."}},{"$f":"SUBTOTAL(109,Развлечения[Разлика])","v":{"v":0,"d":"0 лв."}}]
[null,"Храна","Прогнозни\nРазходи","Действителни\nРазходи","Разлика"]
[null,"Хранителни стоки",null,null,{"$f":"Храна[Прогнозни\nРазходи]-Храна[Действителни\nРазходи]","v":{"v":0,"d":"0 лв."}},null,"Данъци","Прогнозни \nРазходи","Действителни \nРазходи","Разлика"]
[null,"Заведения",null,null,{"$f":"Храна[Прогнозни\nРазходи]-Храна[Действителни\nРазходи]","v":{"v":0,"d":"0 лв."}},null,"Държавен",null,null,{"$f":"Данъци[Прогнозни \nРазходи]-Данъци[Действителни \nРазходи]","v":{"v":0,"d":"0 лв."}}]
[null,"Други",null,null,{"$f":"Храна[Прогнозни\nРазходи]-Храна[Действителни\nРазходи]","v":{"v":0,"d":"0 лв."}},null,"Областен",null,null,{"$f":"Данъци[Прогнозни \nРазходи]-Данъци[Действителни \nРазходи]","v":{"v":0,"d":"0 лв."}}]
[null,"Общо",{"$f":"SUBTOTAL(109,Храна[Прогнозни\nРазходи])","v":{"v":0,"d":"0 лв."}},{"$f":"SUBTOTAL(109,Храна[Действителни\nРазходи])","v":{"v":0,"d":"0 лв."}},{"$f":"SUBTOTAL(109,Храна[Разлика])","v":{"v":0,"d":"0 лв."}},null,"Местен",null,null,{"$f":"Данъци[Прогнозни \nРазходи]-Данъци[Действителни \nРазходи]","v":{"v":0,"d":"0 лв."}}]
[{"$nulls":6},"Други",null,null,{"$f":"Данъци[Прогнозни \nРазходи]-Данъци[Действителни \nРазходи]","v":{"v":0,"d":"0 лв."}}]
[null,"Деца","Прогнозни\nРазходи","Действителни\nРазходи","Разлика",null,"Общо",{"$f":"SUBTOTAL(109,Данъци[Прогнозни \nРазходи])","v":{"v":0,"d":"0 лв."}},{"$f":"SUBTOTAL(109,Данъци[Действителни \nРазходи])","v":{"v":0,"d":"0 лв."}},{"$f":"SUBTOTAL(109,Данъци[Разлика])","v":{"v":0,"d":"0 лв."}}]
[null,"Медицински",null,null,{"$f":"Деца[Прогнозни\nРазходи]-Деца[Действителни\nРазходи]","v":{"v":0,"d":"0 лв."}}]
[null,"Облекло",null,null,{"$f":"Деца[Прогнозни\nРазходи]-Деца[Действителни\nРазходи]","v":{"v":0,"d":"0 лв."}},null,"Хигиенни материали","Прогнозни\nРазходи","Действителни\nРазходи","Разлика"]
[null,"Обучение в училище",null,null,{"$f":"Деца[Прогнозни\nРазходи]-Деца[Действителни\nРазходи]","v":{"v":0,"d":"0 лв."}},null,"Медицински",null,null,{"$f":"ХигиенниМатериали[Прогнозни\nРазходи]-ХигиенниМатериали[Действителни\nРазходи]","v":{"v":0,"d":"0 лв."}}]
[null,"Училищни пособия",null,null,{"$f":"Деца[Прогнозни\nРазходи]-Деца[Действителни\nРазходи]","v":{"v":0,"d":"0 лв."}},null,"Коса/нокти",null,null,{"$f":"ХигиенниМатериали[Прогнозни\nРазходи]-ХигиенниМатериали[Действителни\nРазходи]","v":{"v":0,"d":"0 лв."}}]
[null,"Организационни разходи или такси",null,null,{"$f":"Деца[Прогнозни\nРазходи]-Деца[Действителни\nРазходи]","v":{"v":0,"d":"0 лв."}},null,"Облекло",null,null,{"$f":"ХигиенниМатериали[Прогнозни\nРазходи]-ХигиенниМатериали[Действителни\nРазходи]","v":{"v":0,"d":"0 лв."}}]
[null,"Пари за обяд",null,null,{"$f":"Деца[Прогнозни\nРазходи]-Деца[Действителни\nРазходи]","v":{"v":0,"d":"0 лв."}},null,"Химическо чистене",null,null,{"$f":"ХигиенниМатериали[Прогнозни\nРазходи]-ХигиенниМатериали[Действителни\nРазходи]","v":{"v":0,"d":"0 лв."}}]
[null,"Бавачка",null,null,{"$f":"Деца[Прогнозни\nРазходи]-Деца[Действителни\nРазходи]","v":{"v":0,"d":"0 лв."}},null,"Здравен клуб",null,null,{"$f":"ХигиенниМатериали[Прогнозни\nРазходи]-ХигиенниМатериали[Действителни\nРазходи]","v":{"v":0,"d":"0 лв."}}]
[null,"Играчки/игри",null,null,{"$f":"Деца[Прогнозни\nРазходи]-Деца[Действителни\nРазходи]","v":{"v":0,"d":"0 лв."}},null,"Организационни разходи/такси",null,null,{"$f":"ХигиенниМатериали[Прогнозни\nРазходи]-ХигиенниМатериали[Действителни\nРазходи]","v":{"v":0,"d":"0 лв."}}]
[null,"Други",null,null,{"$f":"Деца[Прогнозни\nРазходи]-Деца[Действителни\nРазходи]","v":{"v":0,"d":"0 лв."}},null,"Други",null,null,{"$f":"ХигиенниМатериали[Прогнозни\nРазходи]-ХигиенниМатериали[Действителни\nРазходи]","v":{"v":0,"d":"0 лв."}}]
[null,"Общо",{"$f":"SUBTOTAL(109,Деца[Прогнозни\nРазходи])","v":{"v":0,"d":"0 лв."}},{"$f":"SUBTOTAL(109,Деца[Действителни\nРазходи])","v":{"v":0,"d":"0 лв."}},{"$f":"SUBTOTAL(109,Деца[Разлика])","v":{"v":0,"d":"0 лв."}},null,"Общо",{"$f":"SUBTOTAL(109,ХигиенниМатериали[Прогнозни\nРазходи])","v":{"v":0,"d":"0 лв."}},{"$f":"SUBTOTAL(109,ХигиенниМатериали[Действителни\nРазходи])","v":{"v":0,"d":"0 лв."}},{"$f":"SUBTOTAL(109,ХигиенниМатериали[Разлика])","v":{"v":0,"d":"0 лв."}}]
[]
[null,"Юридически","Прогнозни\nРазходи","Действителни\nРазходи","Разлика",null,"Домашни_любимци","Прогнозни\nРазходи","Действителни\nРазходи","Разлика"]
[null,"Адвокат",null,null,{"$f":"Юридически[Прогнозни\nРазходи]-Юридически[Действителни\nРазходи]","v":{"v":0,"d":"0 лв."}},null,"Храна",null,null,{"$f":"Домашни_любимци[Прогнозни\nРазходи]-Домашни_любимци[Действителни\nРазходи]","v":{"v":0,"d":"0 лв."}}]
[null,"Издръжка",null,null,{"$f":"Юридически[Прогнозни\nРазходи]-Юридически[Действителни\nРазходи]","v":{"v":0,"d":"0 лв."}},null,"Медицински",null,null,{"$f":"Домашни_любимци[Прогнозни\nРазходи]-Домашни_любимци[Действителни\nРазходи]","v":{"v":0,"d":"0 лв."}}]
[null,"Плащания",null,null,{"$f":"Юридически[Прогнозни\nРазходи]-Юридически[Действителни\nРазходи]","v":{"v":0,"d":"0 лв."}},null,"Поддържане",null,null,{"$f":"Домашни_любимци[Прогнозни\nРазходи]-Домашни_любимци[Действителни\nРазходи]","v":{"v":0,"d":"0 лв."}}]
[null,"Други",null,null,{"$f":"Юридически[Прогнозни\nРазходи]-Юридически[Действителни\nРазходи]","v":{"v":0,"d":"0 лв."}},null,"Играчки",null,null,{"$f":"Домашни_любимци[Прогнозни\nРазходи]-Домашни_любимци[Действителни\nРазходи]","v":{"v":0,"d":"0 лв."}}]
[null,"Общо",{"$f":"SUBTOTAL(109,Юридически[Прогнозни\nРазходи])","v":{"v":0,"d":"0 лв."}},{"$f":"SUBTOTAL(109,Юридически[Действителни\nРазходи])","v":{"v":0,"d":"0 лв."}},{"$f":"SUBTOTAL(109,Юридически[Разлика])","v":{"v":0,"d":"0 лв."}},null,"Други",null,null,{"$f":"Домашни_любимци[Прогнозни\nРазходи]-Домашни_любимци[Действителни\nРазходи]","v":{"v":0,"d":"0 лв."}}]
[{"$nulls":6},"Общо",{"$f":"SUBTOTAL(109,Домашни_любимци[Прогнозни\nРазходи])","v":{"v":0,"d":"0 лв."}},{"$f":"SUBTOTAL(109,Домашни_любимци[Действителни\nРазходи])","v":{"v":0,"d":"0 лв."}},{"$f":"SUBTOTAL(109,Домашни_любимци[Разлика])","v":{"v":0,"d":"0 лв."}}]
[null,"Спестявания/инвестиции","Прогнозни\nРазходи","Действителни\nРазходи","Разлика"]
[null,"Пенсионна сметка",null,null,{"$f":"Спестявания[Прогнозни\nРазходи]-Спестявания[Действителни\nРазходи]","v":{"v":0,"d":"0 лв."}},null,"Подаръци и дарения","Прогнозни\nРазходи","Действителни\nРазходи","Разлика"]
[null,"Инвестиционна сметка",null,null,{"$f":"Спестявания[Прогнозни\nРазходи]-Спестявания[Действителни\nРазходи]","v":{"v":0,"d":"0 лв."}},null,"Благотворителност 1",null,null,{"$f":"Подаръци[Прогнозни\nРазходи]-Подаръци[Действителни\nРазходи]","v":{"v":0,"d":"0 лв."}}]
[null,"Колеж",null,null,{"$f":"Спестявания[Прогнозни\nРазходи]-Спестявания[Действителни\nРазходи]","v":{"v":0,"d":"0 лв."}},null,"Благотворителност 2",null,null,{"$f":"Подаръци[Прогнозни\nРазходи]-Подаръци[Действителни\nРазходи]","v":{"v":0,"d":"0 лв."}}]
[null,"Други",null,null,{"$f":"Спестявания[Прогнозни\nРазходи]-Спестявания[Действителни\nРазходи]","v":{"v":0,"d":"0 лв."}},null,"Благотворителност 3",null,null,{"$f":"Подаръци[Прогнозни\nРазходи]-Подаръци[Действителни\nРазходи]","v":{"v":0,"d":"0 лв."}}]
[null,"Общо",{"$f":"SUBTOTAL(109,Спестявания[Прогнозни\nРазходи])","v":{"v":0,"d":"0 лв."}},{"$f":"SUBTOTAL(109,Спестявания[Действителни\nРазходи])","v":{"v":0,"d":"0 лв."}},{"$f":"SUBTOTAL(109,Спестявания[Разлика])","v":{"v":0,"d":"0 лв."}},null,"Общо",{"$f":"SUBTOTAL(109,Подаръци[Прогнозни\nРазходи])","v":{"v":0,"d":"0 лв."}},{"$f":"SUBTOTAL(109,Подаръци[Действителни\nРазходи])","v":{"v":0,"d":"0 лв."}},{"$f":"SUBTOTAL(109,Подаръци[Разлика])","v":{"v":0,"d":"0 лв."}}]